bitfinex-derivatives/quotes_ETHF0:USTF0_20250411
["timestamp","ask_amount","ask_price","bid_price","bid_amount"]
[1744359085063,116.75681,1560.7,1560.6,47.95390475]
[1744359085261,116.75681,1560.7,1560.6,46.59915475]
[1744359085564,1.28276,1560.1,1558.9,3.20914]
[1744359085764,10.23771,1560.1,1560.0,6.0692]
[1744359085965,8.955,1560.1,1559.7,3.2078]
[1744359086166,8.955,1560.1,1559.9,3.21741477]
[1744359086370,8.955,1560.1,1560.0,6.0692]
[1744359086663,8.955,1560.1,1560.0,18.89000069]
[1744359086861,0.00961477,1560.2,1560.0,18.89000069]
[1744359087063,8.96761477,1560.2,1560.1,12.82080069]
[1744359087466,8.96761477,1560.2,1560.1,21.02860069]
[1744359087967,10.24033,1560.6,1560.1,22.31127069]
[1744359088166,1.28239,1560.5,1560.2,18.95990069]
[1744359088369,1.28235,1560.6,1560.2,18.95990069]
[1744359088566,1.28246,1560.4,1560.3,12.82080069]
[1744359088770,3.2078,1560.6,1560.3,12.82080069]
[1744359088968,1.28238,1560.5,1560.4,12.82080069]
[1744359089265,1.28238,1560.5,1560.2,12.82080069]
[1744359089461,1.29195477,1560.6,1560.2,12.82080069]
[1744359089667,1.29195477,1560.6,1560.3,12.82080069]
[1744359089668,3.21741477,1560.6,1560.3,12.82080069]
[1744359089868,0.00961477,1560.6,1560.4,3.2078]
[1744359090062,0.00961477,1560.6,1560.2,12.82080069]
[1744359090268,1.29193477,1560.6,1560.3,12.82080069]
[1744359090469,1.28239,1560.5,1560.2,12.82080069]
[1744359090665,0.00961477,1560.6,1560.2,12.82080069]
[1744359090870,1.29192477,1560.6,1560.3,12.82080069]
[1744359091170,0.00961477,1560.6,1560.2,12.82080069]
[1744359091370,0.00961477,1560.6,1560.3,3.2078]
[1744359091568,0.00961477,1560.6,1560.3,16.02860069]
[1744359091873,0.00961477,1560.6,1560.4,12.82080069]
[1744359092260,1.29194477,1560.6,1560.4,12.82080069]
[1744359092870,1.92398001,1560.5,1560.4,12.82080069]
[1744359093067,1.28238,1560.5,1560.4,12.82080069]
[1744359093372,1.92398001,1560.5,1560.4,12.82080069]
[1744359093569,1.92398001,1560.5,1560.1,8.1635]
[1744359093763,1.92398001,1560.5,1560.2,12.82080069]
[1744359094770,0.64160001,1560.5,1560.2,12.82080069]
[1744359094971,0.64160001,1560.5,1560.4,3.20037019]
[1744359095272,1.92398001,1560.5,1560.2,3.20037019]
[1744359095571,1.28246,1560.4,1560.2,3.20037019]
[1744359095770,1.28246,1560.4,1560.3,3.20037019]
[1744359096072,9.92951,1560.4,1560.1,8.15607019]
[1744359096268,9.92951,1560.4,1560.2,3.20037019]
[1744359096269,8.647,1560.4,1560.2,3.20037019]
[1744359096776,1.28249,1560.4,1560.2,3.20037019]
[1744359097165,5.13185001,1560.5,1560.2,3.20037019]
[1744359097472,1.28246,1560.4,1560.2,3.20037019]
[1744359097970,1.28246,1560.4,1560.1,4.9557]
[1744359098172,5.13183001,1560.5,1560.1,4.9557]
[1744359098372,1.28247,1560.4,1560.1,4.9557]
[1744359098772,3.84940001,1560.5,1560.1,4.9557]
[1744359098965,3.2078,1560.3,1560.1,4.9557]
[1744359099170,11.8558,1560.3,1560.1,4.9557]
[1744359099759,1.28279,1560.0,1559.9,0.00961477]
[1744359101174,6.28279,1560.0,1559.9,0.00961477]
[1744359101369,10.90679001,1560.0,1559.9,4.77e-06]
[1744359101564,6.92439001,1560.0,1559.9,4.77e-06]
[1744359102065,10.90969001,1560.0,1559.9,4.77e-06]
[1744359102266,1.92439001,1560.0,1559.9,4.77e-06]
[1744359102460,6.92439001,1560.0,1559.9,4.77e-06]
[1744359102662,1.92439001,1560.0,1559.9,4.77e-06]
[1744359103169,6.92439001,1560.0,1559.9,4.77e-06]
[1744359103370,10.90969001,1560.0,1559.9,4.77e-06]
[1744359103671,10.90969001,1560.0,1559.6,5.9209]
[1744359103672,1.28302,1559.8,1559.6,5.9209]
[1744359103863,4.49071,1559.9,1559.6,5.9209]
[1744359104175,1.28298,1559.8,1559.6,5.9209]
[1744359104668,1.283,1559.8,1559.6,5.9209]
[1744359104874,1.28304,1559.7,1559.6,5.9209]
[1744359105270,4.49084,1559.7,1559.6,5.9209]
[1744359106171,1.2832,1559.6,1559.0,3.2078]
[1744359106371,9.63421,1559.5,1559.1,1.28351]
[1744359107073,3.2078,1559.3,1558.8,10.0811]
[1744359107274,1.2836,1559.1,1558.8,10.0811]
[1744359107463,8.352,1559.0,1558.9,0.00640984]
[1744359108173,8.352,1559.0,1558.9,5.00640984]
[1744359108370,8.352,1559.0,1558.9,0.00640984]
[1744359109175,9.63561,1559.0,1558.9,0.00640984]
[1744359109479,10.27721001,1559.0,1558.9,6.10060984]
[1744359109678,108.07521001,1559.0,1558.9,6.10060984]
[1744359110070,106.15,1559.0,1558.9,6.10060984]
[1744359110471,107.43361,1559.0,1558.9,6.10060984]
[1744359112977,108.07521001,1559.0,1558.9,6.10060984]
[1744359113172,107.43361,1559.0,1558.9,6.10060984]
[1744359113372,106.79160001,1559.0,1558.9,6.10060984]
[1744359113575,108.07521001,1559.0,1558.9,6.10060984]
[1744359115280,98.43960001,1559.0,1558.9,6.10060984]
[1744359115486,106.153,1559.0,1558.9,6.10060984]
[1744359116179,106.79460001,1559.0,1558.9,6.10060984]
[1744359116387,108.07821001,1559.0,1558.9,6.10060984]
[1744359117174,106.79460001,1559.0,1558.9,6.10060984]
[1744359117681,106.153,1559.0,1558.9,6.10060984]
[1744359118889,97.798,1559.0,1558.9,6.10060984]
[1744359119181,107.14961,1559.0,1558.9,6.10060984]
[1744359120186,113.23581,1559.0,1558.9,6.10060984]
[1744359120690,105.866,1559.0,1558.9,6.10060984]
[1744359120888,105.866,1559.0,1558.9,9.30840984]
[1744359121084,105.866,1559.0,1558.9,7.99084735]
[1744359121388,8.068,1559.0,1558.9,7.99084735]
[1744359121590,3.2078,1559.4,1559.2,1.28339]
[1744359121780,8.068,1559.4,1559.2,1.28339]
[1744359121980,11.2758,1559.4,1559.1,1.28348]
[1744359122180,3.2078,1559.2,1559.0,9.8824]
[1744359122783,4.49125,1559.2,1559.0,9.8824]
[1744359122978,3.2078,1559.2,1559.0,9.8824]
[1744359123789,3.2078,1559.2,1558.7,3.2078]
[1744359123989,3.2078,1559.2,1558.9,1.28367]
[1744359124288,3.2078,1559.2,1559.0,5.8711]
[1744359124481,3.2078,1559.2,1558.5,40.8]
[1744359124482,1.28373,1558.9,1558.5,40.8]
[1744359124682,8.068,1558.8,1558.7,5.8711]
[1744359127493,9.35178,1558.8,1558.7,5.8711]
[1744359127693,8.068,1558.8,1558.3,5.1357]
[1744359127894,1.28394,1558.6,1558.5,6.374]
[1744359128193,1.28421,1558.3,1557.8,1.28456]
[1744359128381,8.068,1558.2,1558.1,6.374]
[1744359130496,14.3414,1558.2,1557.9,1.2845]
[1744359130791,8.07761477,1558.2,1558.0,7.24903]
[1744359130998,8.07761477,1558.2,1558.1,1.28435]
[1744359131188,4.95637224,1558.8,1558.1,6.41866]
[1744359131490,0.64240001,1558.7,1558.2,6.73088845]
[1744359131691,3.2078,1558.7,1558.2,6.73088845]
[1744359131894,5.13407001,1558.7,1558.2,8.01509845]
[1744359132091,3.2078,1558.7,1558.4,3.2078]
[1744359132283,4.95637224,1558.8,1558.5,5.9646]
[1744359132284,0.00961477,1558.6,1558.5,5.9646]
[1744359132484,4.95637224,1558.8,1558.6,1.2839]
[1744359132697,4.95637224,1558.8,1558.7,5.8714]
[1744359133294,6.24015224,1558.8,1558.7,5.8714]
[1744359133493,11.47897225,1558.8,1558.4,3.2078]
[1744359133692,11.47897225,1558.8,1558.5,7.15542]
[1744359133891,5.59797225,1558.8,1558.5,5.8714]
[1744359134099,4.95637224,1558.8,1558.6,1.28388]
[1744359134291,4.95637224,1558.8,1558.7,5.8714]
[1744359134601,4.95637224,1558.8,1558.7,7.15526]
[1744359134897,4.95637224,1558.8,1558.7,12.15526]
[1744359135293,15.55998961,1558.9,1558.8,1.28378]
[1744359135294,8.07961477,1558.9,1558.8,1.28378]
[1744359135498,8.07961477,1558.9,1558.7,8.83188034]
[1744359135697,8.07961477,1558.9,1558.8,1.28378]
[1744359136393,0.00961477,1558.9,1558.8,1.28378]
[1744359136592,0.00961477,1558.9,1558.8,6.28378]
[1744359136791,0.00961477,1558.9,1558.7,11.90952034]
[1744359137098,1.29331477,1558.9,1558.7,10.62568034]
[1744359137298,0.00961477,1558.9,1558.7,11.90954034]
[1744359137498,0.00961477,1558.9,1558.7,10.62568034]
[1744359137696,0.00961477,1558.9,1558.8,1.28378]
[1744359138490,0.00961477,1558.9,1558.7,13.83348034]
[1744359138697,0.00961477,1558.9,1558.8,1.28378]
[1744359138908,0.00961477,1558.9,1558.8,4.49158]
[1744359139100,12.43674708,1559.2,1559.1,1.28353]
[1744359139403,12.43674708,1559.2,1559.1,4.49133]
[1744359139995,7.48037484,1559.2,1559.1,4.49133]
[1744359140797,7.48037484,1559.2,1559.1,1.28353]
[1744359141100,7.48037484,1559.2,1559.1,4.49133]
[1744359142904,8.76384484,1559.2,1559.0,1.29319477]
[1744359143302,7.48037484,1559.2,1559.1,1.28353]
[1744359144400,0.00961477,1559.3,1559.0,3.21741477]
[1744359144600,0.00961477,1559.3,1559.2,1.28345]
[1744359146811,0.97229593,1559.3,1559.2,1.28345]
[1744359147106,8.45267077,1559.3,1559.2,1.28345]
[1744359147705,8.45267077,1559.3,1559.0,3.21741477]
[1744359147903,6.4433,1559.2,1559.0,4.50096477]
[1744359148304,8.45267077,1559.3,1559.1,1.28353]
[1744359148608,8.45267077,1559.3,1559.2,1.28345]
[1744359149202,8.45267077,1559.3,1559.2,4.49125]
[1744359149911,8.45267077,1559.3,1559.2,9.49125]
[1744359150098,9.97383313,1559.5,1559.4,1.28328]
[1744359150506,18.12247152,1559.6,1559.5,1.2832]
[1744359151107,5.02614229,1559.6,1559.5,6.2832]
[1744359151306,0.00961477,1559.7,1559.6,1.28312]
[1744359151506,0.00961477,1559.7,1559.6,4.49092]
[1744359151711,7.47697,1560.2,1559.6,4.49092]
[1744359151712,79.08954297,1561.2,1560.7,3.20554]
[1744359151907,12.8216,1561.1,1560.9,1.28205]
[1744359152108,12.8216,1561.1,1560.8,3.2078]
[1744359152109,12.8226,1561.0,1560.8,3.2078]
[1744359152310,12.8226,1560.9,1560.8,3.2078]
[1744359152610,31.05853282,1560.9,1560.8,3.2078]
[1744359152809,1.28225,1560.7,1560.4,3.2078]
[1744359153004,23.14918282,1560.6,1560.4,3.2078]
[1744359153205,19.0169,1560.6,1560.5,1.28238]
[1744359153403,26.14096626,1560.6,1560.5,1.28238]
[1744359153603,43.09584908,1560.6,1560.4,3.2078]
[1744359153803,11.25734908,1560.6,1560.5,1.28238]
[1744359154010,13.924,1560.8,1560.4,3.2078]
[1744359154314,25.6442,1560.7,1560.6,1.2823]
[1744359154716,0.00961477,1561.0,1560.9,1.28205]
[1744359154917,8.0082,1561.8,1561.5,1.2815]
[1744359155208,16.95488282,1561.6,1561.5,1.2815]
[1744359155613,37.89420626,1561.6,1561.4,3.2078]
[1744359155808,11.52154,1561.5,1561.4,4.48936]
[1744359156014,28.47642282,1561.5,1561.4,4.48936]
[1744359156213,37.89420626,1561.5,1561.4,4.48936]
[1744359156610,42.02648908,1561.5,1561.3,0.00961477]
[1744359156814,24.34414,1561.4,1561.3,1.29133477]
[1744359157218,6.425,1561.5,1561.4,1.28164]
[1744359157419,25.07160626,1561.5,1561.4,4.48944]
[1744359158419,25.07160626,1561.5,1561.4,1.28164]
[1744359158619,42.02648908,1561.5,1561.3,1.29127477]
[1744359158806,24.34414,1561.4,1561.3,1.29127477]
[1744359159008,34.71232282,1561.4,1561.3,0.00961477]
[1744359159213,41.83738908,1561.4,1561.3,1.29133477]
[1744359159609,37.70510626,1561.4,1561.3,1.29133477]
[1744359159810,0.00640984,1561.6,1561.5,1.28156]
[1744359160119,0.00640984,1561.6,1561.5,4.48936]
[1744359162717,31.4756161,1561.6,1561.5,4.48936]
[1744359162917,18.6530161,1561.6,1561.5,4.48936]
[1744359163221,31.4756161,1561.6,1561.5,4.48936]
[1744359163917,31.4756161,1561.6,1561.4,1.28158]
[1744359164121,6.005,1561.5,1561.4,1.28158]
[1744359164713,5.99580783,1561.5,1561.4,1.28158]
[1744359166519,41.59729691,1561.5,1561.3,3.21741477]
[1744359166725,28.47642282,1561.4,1561.3,0.00961477]
[1744359166914,29.75806282,1561.4,1561.3,0.00961477]
[1744359167115,35.60148908,1561.4,1561.3,0.00961477]
[1744359167322,35.60148908,1561.4,1561.3,1.29133477]
[1744359167719,11.52154,1561.4,1561.3,4.49913477]
[1744359168020,5.948,1561.5,1561.4,1.28164]
[1744359168223,30.29214,1561.5,1561.4,1.28164]
[1744359168424,41.54948908,1561.5,1561.4,1.28164]
[1744359168723,41.54948908,1561.5,1561.3,1.29128477]
[1744359168925,28.47642282,1561.4,1561.3,3.21741477]
[1744359169128,34.93222282,1561.4,1561.3,0.00961477]
[1744359169422,42.05728908,1561.4,1561.3,0.00961477]
[1744359169723,43.33892908,1561.4,1561.3,0.00961477]
[1744359169922,42.05728908,1561.4,1561.3,0.00961477]
[1744359170123,42.05728908,1561.4,1561.3,1.29133477]
[1744359170325,6.4558,1561.4,1561.3,4.49913477]
[1744359171023,42.05728908,1561.4,1561.3,1.29133477]
[1744359171217,42.05728908,1561.4,1561.3,0.00961477]
[1744359171420,48.33892908,1561.4,1561.3,0.00961477]
[1744359171725,16.95488282,1561.1,1560.9,3.2078]
[1744359171923,16.95488282,1561.1,1560.9,4.48985]
[1744359171924,6.4558,1561.0,1560.9,4.48985]
[1744359172117,16.07309149,1561.1,1561.0,1.28196]
[1744359172325,28.89569149,1561.1,1561.0,42.08196]
[1744359172625,33.02797431,1561.1,1561.0,42.08196]
[1744359173120,33.02797431,1561.1,1561.0,40.8]
[1744359173518,35.78209149,1561.1,1561.0,1.28197]
[1744359173817,39.91437431,1561.1,1561.0,1.28197]
[1744359175324,39.91437431,1561.1,1560.9,0.00961477]
[1744359175517,19.709,1561.1,1560.9,3.21741477]
[1744359175823,11.52154,1561.1,1561.0,42.08197]
[1744359176023,11.52154,1561.1,1561.0,48.58897]
[1744359177425,11.52154,1561.1,1561.0,42.08197]
[1744359178415,1.90723395,1561.1,1561.0,42.08197]
[1744359179128,7.80751,1561.2,1561.0,42.08197]
[1744359179129,6.5257,1561.2,1561.1,1.28189]
[1744359179432,8.43293395,1561.2,1561.1,4.48969]
[1744359179829,7.489,1561.5,1561.3,1.2817]
[1744359180026,12.52621677,1561.4,1561.3,1.2817]
[1744359180223,25.34881677,1561.4,1561.3,1.2817]
[1744359180416,12.94548544,1561.4,1561.3,1.2817]
[1744359180622,6.4867,1561.4,1561.3,4.4895]
[1744359180823,0.00640984,1561.6,1561.5,1.28156]
[1744359181122,4.55796133,1561.6,1561.5,5.24985198]
[1744359181323,1.91364379,1561.6,1561.5,5.24985198]
[1744359181926,19.28779528,1561.6,1561.5,5.24985198]
[1744359182226,24.7015581,1561.6,1561.5,0.76049198]
[1744359182821,1.91364379,1561.6,1561.5,1.28156]
[1744359183218,28.4200781,1561.6,1561.4,3.2078]
[1744359183427,1.28166,1561.4,1561.0,50.5522]
[1744359183631,12.8226,1561.1,1561.0,45.28974]
[1744359183821,16.95488282,1561.1,1561.0,46.05322222]
[1744359184027,1.90723395,1561.1,1561.0,46.05322222]
[1744359184218,1.90723395,1561.1,1561.0,51.31565222]
[1744359184421,23.41366826,1561.1,1561.0,51.31565222]
[1744359184624,24.69555826,1561.1,1561.0,44.77125222]
[1744359184822,23.41366826,1561.1,1561.0,44.77125222]
[1744359185228,29.75656826,1561.1,1561.0,44.77125222]
[1744359185426,31.03845826,1561.1,1561.0,44.77125222]
[1744359185722,29.75656826,1561.1,1561.0,0.76345222]
[1744359185927,8.25013395,1561.1,1561.0,2.04542222]
[1744359186122,6.3429,1561.1,1561.0,49.44632222]
[1744359186326,6.3429,1561.1,1561.0,8.64632222]
[1744359186640,25.62428544,1561.1,1561.0,2.04542222]
[1744359186830,25.62428544,1561.1,1561.0,42.08197]
[1744359187021,25.62428544,1561.1,1561.0,40.8]
[1744359187421,31.03845826,1561.1,1561.0,40.8]
[1744359187626,1.28197,1561.0,1560.9,0.00961477]
[1744359187832,26.61088677,1561.0,1560.9,0.00961477]
[1744359188136,29.88046826,1561.0,1560.9,40.80961477]
[1744359188627,31.16243826,1561.0,1560.9,40.80961477]
[1744359188832,36.16243826,1561.0,1560.9,0.00961477]
[1744359189026,44.67347677,1561.0,1560.3,4.49029]
[1744359189330,16.95488282,1560.5,1560.4,40.8]
[1744359189522,4.13228282,1560.8,1560.4,40.8]
[1744359189733,1.90723395,1560.7,1560.6,4.4901]
[1744359189932,1.90723395,1560.7,1560.6,3.2078]
[1744359190133,0.00961477,1560.8,1560.7,1.28221]
[1744359190431,0.00961477,1560.8,1560.7,7.54691]
[1744359190631,6.6171,1561.2,1561.0,1.28191]
[1744359190832,16.95488282,1561.1,1561.0,4.48971]
[1744359191030,18.86211677,1561.1,1561.0,4.48971]
[1744359191234,23.41366826,1561.1,1560.8,3.2078]
[1744359191434,5.41433282,1560.9,1560.8,3.2078]
[1744359191635,16.95488282,1560.9,1560.8,3.2078]
[1744359191830,8.52433395,1560.9,1560.8,3.2078]
[1744359192029,8.52433395,1560.9,1560.8,4.48993]
[1744359192425,31.31281826,1560.9,1560.8,3.2078]
[1744359192824,30.03076826,1560.9,1560.8,3.2078]
[1744359193029,30.03076826,1560.9,1560.8,4.48993]
[1744359193944,23.41366826,1560.9,1560.8,4.48993]
[1744359194239,24.69571826,1560.9,1560.8,3.2078]
[1744359194444,1.90723395,1560.9,1560.8,4.48993]
[1744359194834,0.00961477,1561.0,1560.9,1.28205]
[1744359195029,4.77e-06,1561.0,1560.9,13.05595]
[1744359195337,3.18920395,1561.0,1560.9,6.7739]
[1744359195538,1.90723395,1561.0,1560.9,8.05595]
[1744359195734,3.18920395,1561.0,1560.9,8.05595]
[1744359195935,8.57343395,1561.0,1560.9,8.05595]
[1744359196326,25.52831677,1561.0,1560.9,8.05595]
[1744359196535,30.07986826,1561.0,1560.9,1.28205]
[1744359197040,31.36183826,1561.0,1560.9,1.28205]
[1744359197236,30.07986826,1561.0,1560.8,3.2078]
[1744359197441,28.17263431,1561.0,1560.9,1.28205]
[1744359197740,28.17263431,1561.0,1560.9,8.13175]
[1744359197942,0.00640984,1561.1,1561.0,1.28197]
[1744359198141,1.91364379,1561.1,1561.0,4.48977]
[1744359199442,3.19553379,1561.1,1561.0,4.48977]
[1744359199646,24.7019681,1561.1,1561.0,3.2078]
[1744359200347,24.7019681,1561.1,1560.9,1.28197]
[1744359200538,16.95488282,1560.9,1560.8,4.48986]
[1744359200934,19.28138544,1560.9,1560.8,4.48986]
[1744359201244,23.41366826,1560.9,1560.8,4.48986]
[1744359201736,24.69571826,1560.9,1560.7,11.16433459]
[1744359202039,26.91174677,1560.8,1560.7,9.88217459]
[1744359202244,25.62961677,1560.8,1560.7,9.88217459]
[1744359202543,30.18116826,1560.8,1560.7,1.28221]
[1744359202745,31.46330826,1560.8,1560.6,14.37221459]
[1744359202945,18.86211677,1560.7,1560.6,14.37221459]
[1744359203239,25.30801677,1560.7,1560.6,14.37221459]
[1744359203443,29.85956826,1560.7,1560.6,14.37221459]
[1744359203840,29.85956826,1560.7,1560.6,13.08997459]
[1744359204142,31.14177826,1560.7,1560.6,13.08997459]
[1744359204447,23.41366826,1560.7,1560.6,14.37227459]
[1744359204746,1.90723395,1560.7,1560.6,14.37221459]
[1744359206348,23.41366826,1560.7,1560.6,13.08997459]
[1744359206840,24.69587826,1560.7,1560.6,3.2078]
[1744359207846,29.69587826,1560.7,1560.6,3.2078]
[1744359208142,36.70687826,1560.7,1560.6,3.2078]
[1744359208349,1.2823,1560.6,1560.5,0.00961477]
[1744359208546,26.78971677,1560.6,1560.5,0.00961477]
[1744359208748,38.08026826,1560.6,1560.5,0.00961477]
[1744359209942,36.79796826,1560.6,1560.5,0.00961477]
[1744359210143,36.79796826,1560.6,1560.5,3.21741477]
[1744359210349,36.79796826,1560.6,1560.5,0.00961477]
[1744359210548,38.08026826,1560.6,1560.5,0.00961477]
[1744359210950,43.72106826,1560.6,1560.5,0.00961477]
[1744359212052,18.23756282,1560.2,1559.9,16.34317459]
[1744359212253,16.95488282,1560.0,1559.9,16.34317459]
[1744359212552,18.86211677,1560.0,1559.9,50.68217459]
[1744359212752,1.90723395,1560.0,1559.9,50.68217459]
[1744359213654,20.20586826,1560.0,1559.9,40.8]
[1744359213841,6.47491477,1560.1,1560.0,1.28279]
[1744359214044,7.81866626,1560.1,1560.0,3.2078]
[1744359214354,20.21548303,1560.1,1560.0,3.2078]
[1744359214547,18.87173154,1560.1,1560.0,1.28279]
[1744359214857,1.91684872,1560.1,1560.0,45.29059]
[1744359215355,21.49819303,1560.1,1560.0,40.8]
[1744359215549,20.21548303,1560.1,1560.0,40.8]
[1744359215748,20.21548303,1560.1,1560.0,42.08279]
[1744359215952,20.21548303,1560.1,1560.0,45.29059]
[1744359216254,20.21548303,1560.1,1560.0,42.08279]
[1744359216655,21.49819303,1560.1,1560.0,40.8]
[1744359216959,20.21548303,1560.1,1560.0,40.8]
[1744359217152,21.49819303,1560.1,1560.0,40.8]
[1744359217357,20.21548303,1560.1,1560.0,42.08279]
[1744359217656,20.21548303,1560.1,1560.0,40.8]
[1744359217857,26.91848303,1560.1,1560.0,40.8]
[1744359218047,28.20119303,1560.1,1560.0,40.8]
[1744359218249,1.91684872,1560.1,1560.0,42.08279]
[1744359218549,1.91684872,1560.1,1560.0,45.29059]
[1744359219348,8.61984872,1560.1,1560.0,45.29059]
[1744359219846,8.61984872,1560.1,1560.0,40.8]
[1744359220052,26.85744154,1560.1,1560.0,40.8]
[1744359220255,28.20119303,1560.1,1560.0,40.8]
[1744359221559,26.91848303,1560.1,1560.0,40.8]
[1744359222056,26.91848303,1560.1,1559.8,0.00961477]
[1744359222057,1.28287,1559.9,1559.8,0.00961477]
[1744359222253,1.28296,1559.8,1559.6,3.2078]
[1744359222454,16.95488282,1559.7,1559.5,1.28319]
[1744359222655,23.40328282,1559.6,1559.5,1.28319]
[1744359222855,1.90723395,1559.6,1559.5,10.91889]
[1744359223058,1.90723395,1559.6,1559.5,51.71889]
[1744359223959,1.90723395,1559.6,1559.5,40.8]
[1744359224152,16.06397067,1559.6,1559.5,40.8]
[1744359224353,26.92835349,1559.6,1559.5,42.0832]
[1744359224553,3.2078,1560.0,1559.5,53.8227]
[1744359224757,16.95488282,1559.8,1559.7,1.28298]
[1744359225259,26.92835349,1559.8,1559.5,48.82265]
[1744359225458,16.95488282,1559.6,1559.5,40.8]
[1744359225659,18.23800282,1559.6,1559.5,40.8]
[1744359225859,28.21147349,1559.6,1559.5,40.8]
[1744359226458,31.41927349,1559.6,1559.5,40.8]
[1744359226757,25.59421677,1559.6,1559.5,42.0832]
[1744359227064,1.90723395,1559.6,1559.5,52.6257]
[1744359227865,20.19625349,1559.6,1559.5,40.8]
[1744359228057,29.04047349,1559.6,1559.5,40.8]
[1744359228455,20.19625349,1559.6,1559.5,40.8]
[1744359228854,34.04047349,1559.6,1559.5,40.8]
[1744359229163,18.86211677,1559.5,1559.1,7.3347]
[1744359229366,16.95488282,1559.2,1559.0,1.2836]
[1744359229660,24.51598282,1559.1,1559.0,7.3347]
[1744359229859,26.42321677,1559.1,1558.7,9.22062]
[1744359230057,1.90723395,1559.0,1558.8,47.9679]
[1744359230256,1.90723395,1559.0,1558.9,7.1679]
[1744359230561,1.90723395,1559.0,1558.9,10.3757]
[1744359230759,1.90723395,1559.0,1558.9,11.6594]
[1744359231562,0.00961477,1559.1,1558.9,16.6594]
[1744359231865,1.91684872,1559.1,1559.0,40.8]
[1744359232061,3.20037872,1559.1,1559.0,47.9679]
[1744359232767,1.91684872,1559.1,1559.0,47.9679]
[1744359233161,3.20037872,1559.1,1559.0,47.9679]
[1744359233466,1.91684872,1559.1,1559.0,47.9679]
[1744359233662,1.91684872,1559.1,1559.0,49.25151]
[1744359234266,3.20037872,1559.1,1559.0,49.25151]
[1744359234467,3.20037872,1559.1,1559.0,47.9679]
[1744359234870,1.91684872,1559.1,1559.0,49.25151]
[1744359235357,3.20037872,1559.1,1559.0,47.9679]
[1744359235763,21.47978349,1559.1,1559.0,40.8]
[1744359236862,28.47188349,1559.1,1559.0,40.8]
[1744359237263,33.47188349,1559.1,1559.0,40.8]
[1744359237764,38.60499349,1559.1,1558.7,3.21741477]
[1744359237964,16.95488282,1558.8,1558.7,3.21741477]
[1744359238165,18.86211677,1558.8,1558.7,45.30127477]
[1744359239173,20.18663872,1558.8,1558.7,45.30127477]
[1744359239872,21.47041872,1558.8,1558.7,44.01741477]
[1744359240072,21.47041872,1558.8,1558.7,40.80961477]
[1744359240466,31.70763872,1558.8,1558.3,5.0706]
[1744359240770,31.70763872,1558.8,1558.0,9.88217459]
[1744359240771,20.16268282,1558.4,1558.0,11.16656459]
[1744359240965,16.95488282,1558.1,1558.0,59.40466459]
[1744359241373,20.18663872,1558.1,1558.0,62.61246459]
[1744359241673,20.18663872,1558.1,1558.0,61.32807459]
[1744359241864,18.86211677,1558.1,1558.0,62.61251459]
[1744359242065,1.90723395,1558.1,1558.0,52.73034]
[1744359242269,1.90723395,1558.1,1558.0,51.4459]
[1744359242572,8.89193395,1558.1,1558.0,51.4459]
[1744359242772,25.84681677,1558.1,1558.0,40.8]
[1744359242974,28.45568872,1558.1,1558.0,40.8]
[1744359243175,8.89193395,1558.1,1558.0,44.0078]
[1744359243476,1.90723395,1558.1,1558.0,52.81434]
[1744359244178,0.00961477,1558.2,1558.1,1.28435]
[1744359244373,1.91684872,1558.2,1558.1,1.28435]
[1744359244872,18.87173154,1558.2,1558.0,52.81427]
[1744359245077,1.90723395,1558.1,1558.0,52.81427]
[1744359245268,1.90723395,1558.1,1558.0,51.5299]
[1744359245469,9.50663395,1558.1,1558.0,51.5299]
[1744359245673,9.50663395,1558.1,1558.0,52.81434]
[1744359245974,10.79098395,1558.1,1558.0,51.5299]
[1744359246176,9.50663395,1558.1,1558.0,52.81434]
[1744359246874,10.79098395,1558.1,1558.0,51.5299]
[1744359247266,29.07038872,1558.1,1558.0,51.5299]
[1744359247677,29.07038872,1558.1,1558.0,40.8]
[1744359247874,37.27818872,1558.1,1558.0,40.8]
[1744359248177,2.54963396,1558.0,1557.8,3.2078]
[1744359248473,16.95488282,1557.7,1557.6,3.2078]
[1744359248671,16.95488282,1557.8,1557.7,1.28464]
[1744359248872,18.86211677,1557.8,1557.7,8.55314]
[1744359249076,26.44011677,1557.8,1557.7,49.35314]
[1744359249875,1.28468,1557.7,1557.6,0.00961477]
[1744359250069,28.36719678,1557.7,1557.6,4.77e-06]
[1744359250273,43.13889678,1557.7,1557.6,4.77e-06]
[1744359251782,1.28513,1557.2,1557.0,7.2865]
[1744359251983,24.33778282,1557.1,1557.0,7.27344921]
[1744359252277,1.28526,1557.0,1556.9,9.88217459]
[1744359252485,25.62304282,1557.0,1556.9,9.88217459]
[1744359252681,11.51518282,1557.0,1556.9,9.88217459]
[1744359252985,1.29483477,1557.1,1556.9,53.88997459]
[1744359253176,16.95488282,1557.0,1556.9,53.88997459]
[1744359253375,18.24014282,1557.0,1556.9,53.88997459]
[1744359253775,25.62304282,1557.0,1556.9,53.88997459]
[1744359253984,25.62304282,1557.0,1556.9,50.68217459]
[1744359254689,32.15004282,1557.0,1556.9,9.88217459]
[1744359254887,42.17164282,1557.0,1556.9,9.88217459]
[1744359255291,32.15004282,1557.0,1556.9,9.88217459]
[1744359255590,1.28534,1556.9,1556.8,48.1019]
[1744359255791,25.31562282,1556.9,1556.8,40.8]
[1744359256294,19.53190813,1556.9,1556.8,40.8]
[1744359256494,20.81724813,1556.9,1556.8,48.1019]
[1744359256887,20.81724813,1556.9,1556.8,40.8]
[1744359257392,1.28559,1556.6,1556.5,3.2078]
[1744359257593,18.24047282,1556.6,1556.5,3.2078]
[1744359257794,18.24047282,1556.6,1556.5,44.0078]
[1744359258187,18.24047282,1556.6,1556.5,40.8]
[1744359258794,9.8068,1556.9,1556.5,44.0078]
[1744359259086,18.24039282,1556.7,1556.6,7.1279]
[1744359259295,5.41787282,1556.6,1556.5,44.0078]
[1744359259893,18.24047282,1556.6,1556.5,40.8]
[1744359260093,25.28567282,1556.6,1556.5,40.8]
[1744359260393,12.46307282,1556.6,1556.5,44.0078]
[1744359260784,25.28567282,1556.6,1556.5,44.0078]
[1744359261186,25.28567282,1556.6,1556.5,40.8]
[1744359261586,1.28576,1556.4,1556.3,3.2078]
[1744359261796,18.24064282,1556.4,1556.3,3.2078]
[1744359262096,18.24064282,1556.4,1556.3,44.0078]
[1744359262596,1.28573,1556.5,1556.3,44.0078]